bitfinex-derivatives/quotes_SOLF0:USTF0_20250109
["timestamp","ask_amount","ask_price","bid_price","bid_amount"]
[1736425614904,6.23,191.73,191.69,2.61]
[1736425615102,6.23,191.73,191.65,10.45818793]
[1736425615807,2.6098,191.71,191.66,2.6103]
[1736425616508,2.6098,191.71,191.67,2.6102]
[1736425617006,2.6099,191.7,191.67,2.6102]
[1736425618205,6.23,191.73,191.67,2.6102]
[1736425618405,6.23,191.73,191.72,13.06778793]
[1736425618702,3.1081,191.79,191.72,10.45818793]
[1736425618911,5.7169,191.79,191.72,10.45818793]
[1736425619206,3.1081,191.79,191.72,10.45818793]
[1736425619599,3.1081,191.79,191.75,2.6092]
[1736425620004,7.7481,191.79,191.75,2.6092]
[1736425620205,7.7481,191.79,191.72,10.45818793]
[1736425620807,7.7481,191.79,191.75,2.6092]
[1736425621403,7.7481,191.79,191.76,2.609]
[1736425621611,4.64,191.79,191.75,10.45818793]
[1736425622113,4.64,191.79,191.77,2.6088]
[1736425622409,4.64,191.79,191.78,10.45818793]
[1736425624508,4.64,191.79,191.75,10.45818793]
[1736425624713,4.64,191.79,191.72,10.45818793]
[1736425625311,4.64,191.79,191.76,2.609]
[1736425628314,4.64,191.79,191.77,2.6089]
[1736425628513,4.64,191.79,191.75,10.45818793]
[1736425629015,4.64,191.79,191.78,13.06698793]
[1736425629317,6.68177374,191.91,191.78,11.22177374]
[1736425629517,5.5649,191.9,191.85,2.6077]
[1736425629814,2.9576,191.9,191.84,6.68177374]
[1736425630214,2.6074,191.89,191.84,9.28977374]
[1736425631211,9.0676,191.9,191.84,6.68177374]
[1736425631415,2.6076,191.87,191.82,2.6082]
[1736425631616,10.4428095,191.89,191.78,4.54]
[1736425631808,2.6082,191.83,191.78,7.1487]
[1736425632008,10.4428095,191.89,191.78,4.54]
[1736425632214,0.80369284,191.88,191.78,4.54]
[1736425632419,2.6084,191.82,191.78,4.54]
[1736425633017,2.6084,191.82,191.78,7.1487]
[1736425633415,2.6078,191.86,191.78,4.54]
[1736425633622,10.4428095,191.89,191.79,2.6086]
[1736425634021,2.6081,191.84,191.78,4.54]
[1736425634321,2.6081,191.84,191.8,2.6085]
[1736425635123,2.6082,191.83,191.8,2.6085]
[1736425640118,10.4428095,191.89,191.77,10.4428095]
[1736425640320,10.4428095,191.86,191.74,10.4428095]
[1736425640520,1.5947,191.85,191.74,10.4428095]
[1736425640720,10.4428095,191.83,191.72,4.54]
[1736425640927,3.142,191.82,191.72,4.54]
[1736425641127,2.6087,191.79,191.75,2.6092]
[1736425641322,2.6087,191.79,191.72,4.54]
[1736425642520,3.142,191.82,191.71,10.4428095]
[1736425643127,2.6087,191.79,191.72,2.6095]
[1736425643327,3.142,191.82,191.72,2.6095]
[1736425643519,3.142,191.82,191.71,10.4428095]
[1736425643722,2.6091,191.77,191.73,2.6095]
[1736425648329,2.6091,191.76,191.72,2.6096]
[1736425648634,10.4428095,191.8,191.68,10.4428095]
[1736425648829,2.6096,191.72,191.68,13.0529095]
[1736425649832,10.4428095,191.8,191.68,10.4428095]
[1736425650935,3.142,191.82,191.71,10.4428095]
[1736425651232,2.6089,191.78,191.74,2.6093]
[1736425651634,3.142,191.82,191.74,2.6093]
[1736425652636,9.332,191.82,191.74,2.6093]
[1736425653036,2.609,191.77,191.74,2.6093]
[1736425653631,2.6095,191.73,191.64,45.97597384]
[1736425653836,10.4428095,191.8,191.65,4.54]
[1736425654037,10.4428095,191.8,191.66,10.4428095]
[1736425654241,2.6096,191.73,191.69,2.6099]
[1736425654737,10.4428095,191.8,191.69,2.6099]
[1736425655835,2.6097,191.72,191.69,2.6099]
[1736425656934,2.6097,191.72,191.68,2.6101]
[1736425657936,10.4428095,191.8,191.69,2.61]
[1736425658737,2.6096,191.73,191.69,2.61]
[1736425659039,10.4428095,191.8,191.69,2.61]
[1736425659237,2.6096,191.73,191.69,2.61]
[1736425659439,6.69188397,191.77,191.7,6.69188397]
[1736425659738,2.61,191.7,191.68,6.69188397]
[1736425660639,4.5615,191.74,191.66,6.69188397]
[1736425660640,6.69188397,191.73,191.66,6.69188397]
[1736425663235,2.6103,191.68,191.66,6.69188397]
[1736425663435,2.6103,191.68,191.65,2.6106]
[1736425663736,4.5615,191.74,191.63,15.0012783]
[1736425663943,2.6105,191.66,191.63,10.4612783]
[1736425664444,4.5615,191.74,191.63,10.4612783]
[1736425664938,2.61,191.7,191.66,2.6104]
[1736425665133,2.61,191.7,191.63,10.4612783]
[1736425665641,2.61,191.7,191.66,2.6104]
[1736425665833,2.6098,191.71,191.63,10.4612783]
[1736425666031,2.6098,191.71,191.66,10.4612783]
[1736425667232,4.5615,191.74,191.67,2.6102]
[1736425667433,2.6099,191.7,191.67,2.6102]
[1736425668941,2.6096,191.72,191.68,2.6101]
[1736425669143,3.09,191.74,191.69,10.4612783]
[1736425670044,1.6103,191.8,191.69,10.4612783]
[1736425670244,2.609,191.77,191.73,2.6095]
[1736425670843,7.329,191.77,191.73,2.6095]
[1736425671844,2.6091,191.76,191.72,13.0708783]
[1736425673946,4.72,191.77,191.72,10.4612783]
[1736425674145,7.329,191.77,191.73,2.6095]
[1736425674441,4.72,191.77,191.72,10.4612783]
[1736425674942,4.72,191.77,191.75,10.4612783]
[1736425675841,3.0572,191.86,191.75,10.4612783]
[1736425676041,3.0572,191.86,191.79,10.4612783]
[1736425676851,3.0572,191.86,191.82,2.6081]
[1736425677146,8.1747,191.86,191.79,10.4612783]
[1736425677545,8.1747,191.86,191.83,2.6081]
[1736425678348,8.1747,191.86,191.82,2.6082]
[1736425678847,10.7824,191.86,191.81,2.6084]
[1736425680740,10.7824,191.86,191.82,2.6083]
[1736425681449,8.1747,191.86,191.79,10.4612783]
[1736425681843,2.608,191.84,191.79,10.4612783]
[1736425682649,8.1747,191.86,191.79,10.4612783]
[1736425682847,8.1747,191.86,191.76,10.4612783]
[1736425683048,9.6589,191.86,191.76,10.4612783]
[1736425683242,2.6082,191.83,191.76,10.4612783]
[1736425683447,2.6082,191.83,191.78,2.6088]
[1736425683950,9.6589,191.86,191.73,4.54]
[1736425684346,2.6085,191.81,191.75,2.6091]
[1736425684548,9.6589,191.86,191.75,2.6091]
[1736425685047,2.6085,191.8,191.75,2.6091]
[1736425685349,2.6085,191.8,191.73,4.54]
[1736425685350,2.6085,191.8,191.76,2.609]
[1736425686353,9.6589,191.86,191.76,2.609]
[1736425686551,2.6084,191.81,191.76,2.609]
[1736425687555,2.6082,191.83,191.75,10.4612783]
[1736425689057,2.6082,191.83,191.77,2.6089]
[1736425689250,2.6082,191.83,191.75,10.4612783]
[1736425690056,2.6082,191.83,191.79,2.6086]
[1736425690552,2.608,191.84,191.79,2.6086]
[1736425690849,9.6589,191.86,191.78,10.4612783]
[1736425691054,2.6079,191.85,191.78,10.4612783]
[1736425691255,2.6079,191.85,191.81,6.68445491]
[1736425691954,2.608,191.84,191.81,6.68445491]
[1736425692150,6.68445491,191.85,191.72,4.52]
[1736425692349,6.68445491,191.85,191.79,6.68445491]
[1736425692852,2.6084,191.82,191.79,6.68445491]
[1736425696057,2.6085,191.81,191.77,6.68445491]
[1736425696257,6.68445491,191.81,191.75,6.68445491]
[1736425696659,9.6589,191.86,191.77,6.68445491]
[1736425696858,16.34335491,191.86,191.79,6.68445491]
[1736425697555,2.6082,191.83,191.79,9.29305491]
[1736425698457,2.6083,191.82,191.79,9.29305491]
[1736425699058,7.3783,191.82,191.79,9.29305491]
[1736425699355,4.77,191.82,191.67,5.2204]
[1736425699556,11.45445491,191.82,191.76,6.68445491]
[1736425700358,2.6088,191.79,191.76,6.68445491]
[1736425701065,2.6086,191.8,191.76,6.68445491]
[1736425701760,2.6086,191.8,191.76,9.29345491]
[1736425702757,2.6087,191.79,191.76,9.29345491]
[1736425703656,2.6087,191.79,191.78,6.68445491]
[1736425705363,7.3783,191.82,191.79,2.6087]
[1736425706061,4.77,191.82,191.79,2.6087]
[1736425706261,4.77,191.82,191.8,6.68445491]
[1736425707158,4.77,191.82,191.81,2.6084]
[1736425712967,4.77,191.82,191.8,9.29285491]
[1736425714560,4.77,191.82,191.75,4.52]
[1736425714765,4.77,191.82,191.78,6.68445491]
[1736425715063,4.77,191.82,191.8,6.68445491]
[1736425716068,7.3783,191.82,191.8,6.68445491]
[1736425716370,4.77,191.82,191.8,6.68445491]
[1736425717674,4.77,191.82,191.78,6.68445491]
[1736425718471,2.6084,191.81,191.78,6.68445491]
[1736425719773,11.45445491,191.82,191.69,7.195832]
[1736425719974,11.45445491,191.82,191.75,6.68445491]
[1736425720677,2.6088,191.79,191.75,6.68445491]
[1736425721674,2.6088,191.79,191.77,6.68445491]
[1736425722178,6.4,191.79,191.78,2.6088]
[1736425722677,6.4,191.79,191.77,6.68445491]
[1736425722874,6.4,191.79,191.77,9.29335491]
[1736425723978,6.4,191.79,191.77,6.68445491]
[1736425725472,2.6088,191.78,191.77,6.68445491]
[1736425730779,13.08445491,191.79,191.66,7.195832]
[1736425731082,6.68445491,191.76,191.7,6.68445491]
[1736425731777,2.6093,191.75,191.7,6.68445491]
[1736425731983,6.68445491,191.76,191.7,6.68445491]
[1736425733180,3.2257,191.77,191.72,6.68445491]
[1736425733578,2.6091,191.76,191.74,6.68445491]
[1736425733778,3.2257,191.77,191.74,6.68445491]
[1736425734080,6.4,191.79,191.76,6.68445491]
[1736425734281,6.4,191.79,191.78,9.29325491]
[1736425736380,6.4,191.79,191.78,6.68445491]
[1736425738384,6.4,191.79,191.78,9.29325491]
[1736425738985,6.68445491,191.91,191.78,6.68445491]
[1736425739285,6.68445491,191.91,191.86,6.68445491]
[1736425739583,6.68445491,191.91,191.84,6.68445491]
[1736425739883,6.68445491,191.89,191.82,6.68445491]
[1736425740084,12.48445491,191.89,191.82,6.68445491]
[1736425740281,2.6081,191.84,191.82,6.68445491]
[1736425740482,6.68445491,191.87,191.79,4.52]
[1736425740687,1.5598,191.86,191.81,6.68445491]
[1736425740881,3.0321,191.86,191.81,6.68445491]
[1736425741083,2.6081,191.84,191.81,6.68445491]
[1736425741887,3.0321,191.86,191.81,6.68445491]
[1736425742083,2.6082,191.83,191.81,6.68445491]
[1736425742287,6.68445491,191.85,191.79,11.20445491]
[1736425742491,2.6085,191.81,191.79,6.68445491]
[1736425742790,6.68445491,191.83,191.77,6.68445491]
[1736425743095,6.68445491,191.81,191.75,6.68445491]
[1736425743790,6.68445491,191.83,191.75,9.29365491]
[1736425744791,6.68445491,191.81,191.75,6.68445491]
[1736425745984,2.6088,191.79,191.75,9.29365491]
[1736425746587,2.609,191.77,191.75,6.68445491]
[1736425749392,2.6091,191.76,191.75,6.68445491]
[1736425750790,6.68445491,191.79,191.65,3.74950734]
[1736425750998,4.6955,191.78,191.71,6.68445491]
[1736425751596,2.6093,191.75,191.71,6.68445491]
[1736425752194,2.6093,191.75,191.71,9.29415491]
[1736425754294,2.6093,191.75,191.71,6.68445491]
[1736425754493,2.6094,191.74,191.71,6.68445491]
[1736425755902,5.9,191.75,191.71,6.68445491]
[1736425756299,2.6094,191.74,191.71,6.68445491]
[1736425756501,5.9,191.75,191.71,6.68445491]
[1736425756998,2.6096,191.73,191.71,6.68445491]
[1736425757601,5.9,191.75,191.69,6.68445491]
[1736425757804,2.6096,191.72,191.69,6.68445491]
[1736425758803,2.6095,191.73,191.69,6.68445491]
[1736425759003,5.9,191.75,191.71,9.29415491]
[1736425759204,5.9,191.75,191.73,6.68445491]
[1736425760705,8.5093,191.75,191.73,6.68445491]
[1736425761403,2.6093,191.74,191.73,6.68445491]
[1736425761603,2.6093,191.74,191.71,9.29415491]
[1736425762503,12.58445491,191.75,191.69,6.68445491]
[1736425765007,5.9,191.75,191.71,6.68445491]
[1736425765406,8.5093,191.75,191.71,6.68445491]
[1736425765910,8.5093,191.75,191.71,9.29405491]
[1736425767910,2.6093,191.74,191.71,9.29405491]
[1736425770013,2.6095,191.73,191.71,6.68445491]
[1736425770715,2.6096,191.72,191.71,6.68445491]
[1736425771215,2.6095,191.74,191.71,6.68445491]
[1736425772316,11.37995491,191.78,191.71,6.68445491]
[1736425772513,2.6093,191.75,191.71,9.29405491]
[1736425772713,4.6955,191.78,191.73,6.68445491]
[1736425773520,2.6092,191.76,191.73,9.29385491]
[1736425774216,2.6092,191.75,191.73,9.29385491]
[1736425775715,2.6094,191.74,191.71,6.68445491]
[1736425775920,18.74995491,191.78,191.71,6.68445491]
[1736425776822,2.6096,191.73,191.7,2.6098]
[1736425777120,18.74995491,191.78,191.7,2.6098]
[1736425777312,18.74995491,191.78,191.69,6.68445491]
[1736425777516,6.68445491,191.76,191.69,9.29445491]
[1736425778925,2.6096,191.72,191.69,9.29435491]
[1736425780119,2.6096,191.72,191.69,6.68445491]
[1736425782828,12.0655,191.78,191.69,6.68445491]
[1736425782829,18.74995491,191.78,191.71,6.68445491]
[1736425783029,2.6095,191.74,191.71,6.68445491]
[1736425785832,2.6095,191.74,191.71,9.29415491]
[1736425790035,4.6955,191.78,191.73,6.68445491]
[1736425790234,3.199,191.78,191.73,6.68445491]
[1736425790530,2.6092,191.76,191.73,9.29395491]
[1736425791133,10.199,191.78,191.73,6.68445491]
[1736425791335,2.6092,191.75,191.73,6.68445491]
[1736425795436,2.6092,191.75,191.72,2.6096]
[1736425795935,2.6092,191.75,191.71,9.29415491]
[1736425798136,7.0,191.78,191.74,2.6093]
[1736425798338,7.0,191.78,191.76,6.68445491]
[1736425799134,8.48858281,191.85,191.76,6.68445491]
[1736425799441,5.55981077,191.87,191.83,6.68445491]
[1736425799637,5.55981077,191.87,191.85,6.68445491]
[1736425799842,11.09608281,191.88,191.85,6.68445491]
[1736425800044,2.6075,191.88,191.85,6.68445491]
[1736425800538,4.59,191.88,191.87,6.68445491]
[1736425800940,8.48728158,191.94,191.87,6.68445491]
[1736425801242,8.48728158,191.94,191.93,6.68445491]
[1736425801643,154.8237216,191.97,191.84,4.52]
[1736425801942,154.8237216,191.97,191.89,6.68445491]
[1736425802337,15.95695491,191.97,191.89,6.68445491]
[1736425802537,6.68445491,191.95,191.89,6.68445491]
[1736425803144,2.6072,191.91,191.89,6.68445491]
[1736425804144,2.6072,191.9,191.87,6.68445491]
[1736425805545,6.68445491,191.91,191.85,6.68445491]
[1736425806337,6.68445491,191.89,191.78,4.52]
[1736425806537,6.68445491,191.87,191.81,6.68445491]
[1736425806736,6.68445491,191.85,191.79,6.68445491]
[1736425806935,2.6083,191.82,191.79,6.68445491]
[1736425809746,2.6084,191.81,191.79,6.68445491]
[1736425809942,6.68445491,191.83,191.77,6.68445491]
[1736425810138,6.68445491,191.81,191.75,6.68445491]
[1736425811245,2.6087,191.79,191.75,6.68445491]
[1736425813249,2.6087,191.79,191.77,6.68445491]
[1736425813453,2.6083,191.82,191.77,9.29335491]
[1736425813752,1.4859,191.86,191.81,6.68445491]
[1736425814351,2.6079,191.85,191.81,6.68445491]
[1736425815455,9.8379,191.85,191.81,6.68445491]
[1736425817151,9.8379,191.85,191.69,4.52]
[1736425817152,7.23,191.85,191.83,6.68445491]
[1736425818252,7.23,191.85,191.84,2.608]
[1736425819249,7.23,191.85,191.83,6.68445491]
[1736425819250,7.23,191.85,191.83,10.43884632]
[1736425820154,7.23,191.85,191.84,2.608]
[1736425823259,7.23,191.85,191.81,14.95884632]
[1736425824058,7.23,191.85,191.82,2.6082]
[1736425824858,7.23,191.85,191.83,2.6081]
[1736425825254,7.23,191.85,191.81,10.43884632]
[1736425825455,7.23,191.85,191.84,2.608]
[1736425826059,7.23,191.85,191.84,13.04684632]
[1736425827558,4.6535,191.95,191.84,10.43884632]
[1736425827759,4.6535,191.95,191.87,10.43884632]
[1736425828858,2.6066,191.94,191.89,2.6073]
[1736425830362,9.1915,191.95,191.87,10.43884632]
[1736425831663,9.1915,191.95,191.9,2.6071]
[1736425831664,11.798,191.95,191.9,2.6071]
[1736425833767,11.798,191.95,191.91,2.607]
[1736425835266,6.07,191.95,191.9,10.43884632]
[1736425836170,6.07,191.95,191.93,2.6067]
[1736425839768,6.07,191.95,191.94,2.6066]
[1736425841371,6.07,191.95,191.94,9.28069934]
[1736425844174,194.0,192.07,191.94,9.28069934]
[1736425844175,14.68022685,192.11,191.94,11.19409934]
[1736425844375,3.0876,192.1,192.04,6.67409934]
[1736425845268,4.99,192.1,192.08,6.67409934]
[1736425847375,4.99,192.1,192.02,10.41740415]
[1736425847769,4.99,192.1,192.03,4.52]
[1736425847969,4.99,192.1,192.05,10.41740415]
[1736425849074,4.99,192.1,192.07,2.6048]
[1736425849475,4.99,192.1,192.05,10.41740415]
[1736425849774,4.99,192.1,192.03,4.52]
[1736425850074,4.99,192.1,192.05,2.605]
[1736425850269,4.99,192.1,192.03,4.52]
[1736425850471,4.99,192.1,192.05,10.41740415]
[1736425851176,4.99,192.1,192.06,2.605]
[1736425851375,4.99,192.1,192.05,10.41740415]
[1736425851573,4.99,192.1,192.03,4.52]
[1736425852172,4.99,192.1,192.05,2.605]
[1736425855182,4.99,192.1,192.06,2.605]
[1736425860783,4.99,192.1,192.05,10.41740415]
[1736425861981,4.99,192.1,192.09,2.6046]
[1736425863287,4.99,192.1,192.07,2.6048]
[1736425863884,3.1597,192.16,192.07,2.6048]
[1736425864088,2.6043,192.12,192.07,2.6048]
[1736425864483,13.57710415,192.16,192.06,10.41740415]
[1736425865189,13.57710415,192.16,192.06,13.02240415]
[1736425865392,13.57710415,192.16,192.06,10.41740415]
[1736425867089,2.6042,192.12,192.08,2.6047]
[1736425867289,2.6042,192.12,192.08,9.26997571]
[1736425867991,2.6045,192.1,192.08,6.66527571]
[1736425868193,6.66527571,192.15,192.08,6.66527571]
[1736425868795,2.6044,192.11,192.08,6.66527571]
[1736425869092,6.66527571,192.15,192.08,6.66527571]
[1736425869793,6.66527571,192.15,192.08,9.26997571]
[1736425870095,2.6043,192.12,192.08,9.26997571]
[1736425871894,6.66527571,192.15,192.08,9.26997571]
[1736425872097,2.6043,192.11,192.08,9.26997571]
[1736425872994,2.6042,192.13,192.09,2.6045]
[1736425873301,2.6042,192.13,192.08,6.66527571]
[1736425875193,2.6042,192.13,192.1,2.6045]
[1736425875998,6.66527571,192.15,192.08,6.66527571]
[1736425876591,6.66527571,192.15,192.08,9.26997571]
[1736425877895,6.66527571,192.15,192.09,2.6046]
[1736425878596,9.5297,192.16,192.12,6.66527571]
[1736425878802,9.5297,192.16,192.14,6.66527571]
[1736425879399,12.1334,192.16,192.14,6.66527571]
[1736425880699,9.5297,192.16,192.12,6.66527571]
[1736425880898,6.66527571,192.14,192.07,6.66527571]
[1736425881401,2.6045,192.1,192.07,9.27007571]
[1736425881999,1.4878,192.13,192.09,9.26987571]
[1736425882000,2.6042,192.12,192.09,9.26987571]
[1736425882194,16.19497571,192.16,192.11,6.66527571]
[1736425882389,3.1597,192.16,192.11,6.66527571]
[1736425883402,9.9797,192.16,192.13,6.66527571]
[1736425883905,12.5834,192.16,192.14,2.6039]
[1736425884507,12.5834,192.16,192.13,9.26927571]
[1736425886202,9.4237,192.16,192.13,9.26927571]
[1736425886998,9.4237,192.16,192.13,6.66527571]
[1736425888201,9.4237,192.16,192.13,9.26927571]
[1736425888501,2.6038,192.15,192.13,6.66527571]
[1736425889702,13.48527571,192.16,192.1,6.66527571]
[1736425889906,3.2012,192.15,192.08,6.66527571]
[1736425890205,2.6044,192.11,192.08,6.66527571]
[1736425891404,3.2012,192.15,192.08,6.66527571]
[1736425891603,6.66527571,192.12,192.06,6.66527571]
[1736425892007,2.6047,192.08,192.04,2.6053]
[1736425892205,6.66527571,192.08,191.99,3.74285648]
[1736425892405,6.66527571,192.06,192.0,6.66527571]
[1736425893412,6.66527571,192.04,191.98,6.66527571]
[1736425893713,2.6058,192.01,191.96,6.66527571]
[1736425893903,6.66527571,192.02,191.96,6.66527571]
[1736425894417,2.6059,192.0,191.96,6.66527571]
[1736425894914,2.6057,192.02,191.98,6.66527571]
[1736425895510,2.6058,192.01,191.96,10.4253369]
[1736425899117,2.6058,192.01,191.96,13.0316369]
[1736425900010,2.6058,192.0,191.96,10.4253369]
[1736425900211,10.4253369,192.04,191.93,14.9453369]
[1736425900407,1.5433,192.03,191.9,10.4253369]
[1736425900608,2.6066,191.95,191.9,13.0325369]
[1736425900813,10.4253369,192.01,191.9,10.4253369]
[1736425901017,2.6068,191.93,191.9,10.4253369]
[1736425901217,10.4253369,192.01,191.87,10.4253369]
[1736425901616,2.607,191.91,191.87,10.4253369]
[1736425901816,10.4253369,191.98,191.87,10.4253369]
[1736425902013,3.0823,191.97,191.87,10.4253369]
[1736425902413,3.0823,191.97,191.84,13.0332369]
[1736425902619,3.0823,191.97,191.84,10.4253369]
[1736425903316,3.0823,191.97,191.87,2.6074]
[1736425903521,3.0823,191.97,191.87,10.4253369]
[1736425904016,2.6068,191.93,191.88,2.6073]
[1736425904217,3.0823,191.97,191.88,2.6073]
[1736425905221,2.6069,191.92,191.88,2.6073]
[1736425905612,8.1469,191.92,191.89,2.6073]
[1736425905818,5.54,191.92,191.89,2.6073]
[1736425906021,5.54,191.92,191.88,2.6074]
[1736425906322,5.54,191.92,191.87,10.4253369]
[1736425907118,5.54,191.92,191.88,2.6074]
[1736425907421,5.54,191.92,191.87,10.4253369]
[1736425907815,5.54,191.92,191.84,10.4253369]
[1736425908618,2.6073,191.9,191.84,13.0332369]
[1736425908819,5.54,191.92,191.84,10.4253369]
[1736425909426,2.6071,191.91,191.84,10.4253369]
[1736425910022,8.1469,191.92,191.87,2.6075]
[1736425910222,5.54,191.92,191.84,10.4253369]
[1736425911220,5.54,191.92,191.87,2.6075]
[1736425911725,2.6073,191.9,191.85,2.6077]
[1736425912213,2.6073,191.89,191.84,13.0332369]
[1736425912416,5.54,191.92,191.81,10.4253369]
[1736425912924,2.6072,191.9,191.85,2.6077]
[1736425913126,5.54,191.92,191.84,10.4253369]
[1736425913625,2.607,191.91,191.87,2.6076]
[1736425914026,5.54,191.92,191.84,10.4253369]
[1736425914228,5.54,191.92,191.88,2.6074]
[1736425915622,8.1469,191.92,191.88,2.6074]
[1736425916920,8.1469,191.92,191.87,10.4253369]
[1736425917125,2.6072,191.9,191.86,2.6076]
[1736425917626,2.6076,191.88,191.84,10.4253369]
[1736425917829,5.54,191.92,191.81,10.4253369]
[1736425918529,2.6073,191.89,191.84,2.6079]
[1736425919229,5.54,191.92,191.84,10.4253369]
[1736425919437,2.6071,191.91,191.84,10.4253369]
[1736425919625,2.6071,191.91,191.86,2.6077]
[1736425920033,5.54,191.92,191.86,2.6077]
[1736425920330,2.6072,191.9,191.86,2.6077]
[1736425920530,5.54,191.92,191.84,10.4253369]
[1736425921837,5.54,191.92,191.8,14.9453369]
[1736425922234,2.6074,191.89,191.85,2.6078]
[1736425922736,2.6075,191.88,191.8,14.9453369]
[1736425922939,5.54,191.92,191.83,2.6081]
[1736425923836,2.6077,191.86,191.83,2.6081]
[1736425924143,2.6077,191.86,191.8,10.4253369]
[1736425924344,2.6077,191.86,191.82,2.6082]
[1736425925440,10.4253369,191.89,191.75,10.4253369]
[1736425925631,3.1523,191.85,191.75,10.4253369]
[1736425925836,2.6087,191.79,191.75,10.4253369]
[1736425926036,2.6087,191.79,191.74,6.35695698]
[1736425926241,10.4253369,191.83,191.74,3.74765698]
[1736425926439,10.4253369,191.83,191.68,57.56665606]
[1736425926440,2.6092,191.75,191.68,10.4253369]
[1736425926834,1.5811,191.79,191.66,4.52]
[1736425927037,1.5811,191.79,191.69,2.61]
[1736425927238,10.4253369,191.77,191.65,28.78332802]
[1736425927532,10.4253369,191.74,191.62,14.9453369]
[1736425927736,10.4253369,191.74,191.62,10.4253369]
[1736425927942,2.6098,191.71,191.62,13.0363369]
[1736425928140,10.4253369,191.74,191.62,13.0363369]
[1736425928346,10.4253369,191.74,191.62,10.4253369]
[1736425928547,2.6096,191.72,191.66,2.6104]
[1736425929043,2.6096,191.72,191.65,10.4253369]
[1736425929249,2.6095,191.74,191.65,10.4253369]
[1736425929450,3.1523,191.76,191.65,10.4253369]
[1736425929649,10.4253369,191.74,191.63,2.6108]
[1736425929849,2.6102,191.68,191.63,2.6108]
[1736425930251,10.4253369,191.74,191.63,2.6108]
[1736425930449,2.61,191.7,191.63,2.6108]
[1736425930650,3.1523,191.76,191.62,10.4253369]
[1736425930950,3.1523,191.76,191.68,10.4253369]
[1736425931852,2.6093,191.75,191.7,2.6099]
[1736425932449,3.1523,191.76,191.71,2.6097]
[1736425933047,3.1523,191.76,191.68,10.4253369]
[1736425933249,3.1523,191.76,191.7,2.6099]
[1736425933550,2.6092,191.75,191.68,10.4253369]
[1736425934049,2.6094,191.74,191.65,4.52]
[1736425934349,3.1523,191.76,191.69,10.4253369]
[1736425934847,1.5811,191.79,191.69,10.4253369]
[1736425935053,3.2034,191.81,191.72,10.4253369]
[1736425935744,2.6088,191.78,191.72,10.4253369]
[1736425935941,10.4253369,191.8,191.69,10.4253369]
[1736425936143,12.0382369,191.8,191.69,10.4253369]
[1736425936752,17.4582369,191.8,191.69,10.4253369]
[1736425937147,17.4582369,191.8,191.69,13.0352369]
[1736425937353,17.4582369,191.8,191.69,10.4253369]
[1736425937852,2.6094,191.74,191.69,13.0353369]
[1736425938253,2.6092,191.76,191.69,10.4253369]
[1736425939048,2.6092,191.76,191.71,2.6097]
[1736425940256,2.6092,191.76,191.71,2.6096]
[1736425940457,2.6094,191.74,191.66,10.4253369]
[1736425940657,17.4582369,191.8,191.66,10.4253369]
[1736425940859,2.6101,191.69,191.62,10.4253369]
[1736425941159,10.4253369,191.74,191.62,10.4253369]
[1736425941355,4.6255,191.73,191.62,10.4253369]
[1736425941755,4.6255,191.73,191.63,2.6107]
[1736425942658,2.6102,191.68,191.63,2.6107]
[1736425942855,4.6255,191.73,191.63,2.6107]
[1736425943049,4.6255,191.73,191.62,13.0363369]
[1736425943255,2.6104,191.67,191.62,13.0363369]
[1736425943456,10.4253369,191.71,191.62,2.611]
[1736425943850,2.6101,191.69,191.62,2.611]
[1736425944050,10.4253369,191.71,191.61,3.74998214]
[1736425944351,10.4253369,191.71,191.6,2.6112]
[1736425944955,2.6106,191.65,191.6,2.6112]
[1736425945756,10.4253369,191.71,191.6,10.4253369]
[1736425946361,10.4253369,191.71,191.63,2.6108]
[1736425946558,10.4253369,191.7,191.48,7.195832]
[1736425946861,10.4253369,191.59,191.48,7.195832]
[1736425947961,10.4253369,191.59,191.46,11.9853369]
[1736425948360,2.6122,191.54,191.48,2.6128]